[Event "*** Titled Tuesday Blitz"]
[Site "Chess.com"]
[Date "2020.04.28"]
[Round "8"]
[White "GeorgMeier"]
[Black "XDPS"]
[Result "1-0"]
[WhiteElo "3010"]
[BlackElo "2767"]
[TimeControl "180+1"]
[EndTime "11:37:01 PDT"]
[Termination "GeorgMeier won on time"]

1. Nf3 {[%clk 0:03:00.9]} 1... d5 {[%clk 0:02:59.3]} 2. g3 {[%clk 0:02:53.7]}
2... Nf6 {[%clk 0:02:58.9]} 3. Bg2 {[%clk 0:02:49.9]} 3... Bg4 {[%clk 0:02:59]}
4. h3 {[%clk 0:02:44.3]} 4... Bh5 {[%clk 0:02:58.8]} 5. c4 {[%clk 0:02:30.6]}
5... c6 {[%clk 0:02:58.4]} 6. cxd5 {[%clk 0:02:22.1]} 6... Bxf3 {[%clk
0:02:57.9]} 7. Bxf3 {[%clk 0:02:21.8]} 7... cxd5 {[%clk 0:02:58.2]} 8. d4 {[%clk
0:02:21.7]} 8... Nc6 {[%clk 0:02:55.3]} 9. O-O {[%clk 0:02:19.1]} 9... e6 {[%clk
0:02:55.4]} 10. Nc3 {[%clk 0:02:13.9]} 10... Be7 {[%clk 0:02:55.4]} 11. e3
{[%clk 0:02:13.1]} 11... O-O {[%clk 0:02:55.4]} 12. Bd2 {[%clk 0:02:09.6]} 12...
Qd7 {[%clk 0:02:47.2]} 13. Qe2 {[%clk 0:02:07.5]} 13... Rfc8 {[%clk 0:02:46.2]}
14. Bg2 {[%clk 0:02:07.1]} 14... Ne8 {[%clk 0:02:40.9]} 15. Rfc1 {[%clk
0:02:05.6]} 15... Nd6 {[%clk 0:02:41.2]} 16. Be1 {[%clk 0:02:03.5]} 16... Nc4
{[%clk 0:02:18.4]} 17. Rab1 {[%clk 0:01:50.2]} 17... b6 {[%clk 0:02:04.6]} 18.
Qd1 {[%clk 0:01:46.1]} 18... a6 {[%clk 0:01:55.1]} 19. Ne2 {[%clk 0:01:43.2]}
19... b5 {[%clk 0:01:32.7]} 20. Nf4 {[%clk 0:01:36.8]} 20... Rab8 {[%clk
0:01:17.4]} 21. Nd3 {[%clk 0:01:36]} 21... Qa7 {[%clk 0:01:15.8]} 22. Rc2 {[%clk
0:01:32.6]} 22... Rc7 {[%clk 0:01:02.1]} 23. Rbc1 {[%clk 0:01:22.3]} 23... Rbc8
{[%clk 0:01:02.5]} 24. h4 {[%clk 0:01:20.1]} 24... Qb6 {[%clk 0:00:58.2]} 25. h5
{[%clk 0:01:10.8]} 25... h6 {[%clk 0:00:57.9]} 26. Bf1 {[%clk 0:01:05.9]} 26...
a5 {[%clk 0:00:56.9]} 27. Nc5 {[%clk 0:01:03.1]} 27... Bxc5 {[%clk 0:00:30.5]}
28. dxc5 {[%clk 0:01:02.6]} 28... Qb7 {[%clk 0:00:30.1]} 29. b3 {[%clk
0:00:58.6]} 29... Na3 {[%clk 0:00:27.6]} 30. Rd2 {[%clk 0:00:53]} 30... b4
{[%clk 0:00:27.3]} 31. Bg2 {[%clk 0:00:41.4]} 31... Ne7 {[%clk 0:00:20.6]} 32.
e4 {[%clk 0:00:37.5]} 32... dxe4 {[%clk 0:00:19.8]} 33. Rd8+ {[%clk 0:00:36.2]}
33... Kh7 {[%clk 0:00:17.2]} 34. Rxc8 {[%clk 0:00:33.2]} 34... Rxc8 {[%clk
0:00:15.4]} 35. Qd6 {[%clk 0:00:23.6]} 35... Nb5 {[%clk 0:00:11.8]} 36. Qf4
{[%clk 0:00:22]} 36... f5 {[%clk 0:00:10.2]} 37. g4 {[%clk 0:00:21]} 37... Qc7
{[%clk 0:00:07.4]} 38. Qe3 {[%clk 0:00:18.8]} 38... Nd5 {[%clk 0:00:07.8]} 39.
Qe2 {[%clk 0:00:15.1]} 39... Qe5 {[%clk 0:00:06.3]} 40. Qxb5 {[%clk 0:00:13.3]}
40... Nf4 {[%clk 0:00:06.1]} 41. Bd2 {[%clk 0:00:12.2]} 41... Nxg2 {[%clk
0:00:05.1]} 42. Kxg2 {[%clk 0:00:12]} 42... f4 {[%clk 0:00:06]} 43. Qc4 {[%clk
0:00:09.9]} 43... Rd8 {[%clk 0:00:05.7]} 44. Rc2 {[%clk 0:00:06.2]} 44... Kh8
{[%clk 0:00:04.6]} 45. c6 {[%clk 0:00:06.2]} 45... e3 {[%clk 0:00:05]} 46. Bxe3
{[%clk 0:00:04.3]} 46... fxe3 {[%clk 0:00:05.9]} 47. c7 {[%clk 0:00:05.1]} 47...
Rc8 {[%clk 0:00:05.3]} 48. fxe3 {[%clk 0:00:05.1]} 48... Qxe3 {[%clk 0:00:05.1]}
49. Re2 {[%clk 0:00:05.6]} 49... Qb6 {[%clk 0:00:03.1]} 50. Rxe6 {[%clk
0:00:05.5]} 50... Qb7+ {[%clk 0:00:01.8]} 51. Qe4 {[%clk 0:00:05.4]} 51... Qxe4+
{[%clk 0:00:02]} 52. Rxe4 {[%clk 0:00:06.3]} 52... Rxc7 {[%clk 0:00:02.9]} 53.
Kf3 {[%clk 0:00:06.9]} 53... Rc2 {[%clk 0:00:03]} 54. Re2 {[%clk 0:00:07.2]}
54... Rc5 {[%clk 0:00:03.3]} 55. Ke4 {[%clk 0:00:06.2]} 55... Kg8 {[%clk
0:00:03.4]} 56. Kf4 {[%clk 0:00:04.8]} 56... Rg5 {[%clk 0:00:04.3]} 57. Re5
{[%clk 0:00:05.1]} 57... Rxe5 {[%clk 0:00:02.9]} 58. Kxe5 {[%clk 0:00:06]} 58...
Kf7 {[%clk 0:00:03.8]} 59. Kf5 {[%clk 0:00:05]} 59... Ke7 {[%clk 0:00:04.1]} 60.
g5 {[%clk 0:00:03.5]} 60... Kf8 {[%clk 0:00:05]} 61. gxh6 {[%clk 0:00:03.4]}
61... gxh6 {[%clk 0:00:05.3]} 62. Kg6 {[%clk 0:00:04.3]} 62... Ke7 {[%clk
0:00:05.4]} 63. Kxh6 {[%clk 0:00:04.6]} 63... Kf6 {[%clk 0:00:05.4]} 64. Kh7
{[%clk 0:00:05.1]} 64... Kf7 {[%clk 0:00:05.8]} 65. h6 {[%clk 0:00:05.5]} 65...
Ke6 {[%clk 0:00:01.5]} 66. Kg7 {[%clk 0:00:05.6]} 1-0

[Event "*** Titled Tuesday Blitz"]
[Site "Chess.com"]
[Date "2020.04.28"]
[Round "8"]
[White "Fandorine"]
[Black "Firegrizzly"]
[Result "1-0"]
[WhiteElo "2879"]
[BlackElo "2652"]
[TimeControl "180+1"]
[EndTime "11:37:02 PDT"]
[Termination "Fandorine won on time"]

1. e4 {[%clk 0:03:00.9]} 1... e6 {[%clk 0:02:54.9]} 2. d4 {[%clk 0:02:59.9]}
2... d5 {[%clk 0:02:55.8]} 3. exd5 {[%clk 0:02:59.5]} 3... exd5 {[%clk
0:02:55.1]} 4. Nf3 {[%clk 0:03:00.1]} 4... c6 {[%clk 0:02:55]} 5. Bd3 {[%clk
0:03:00.3]} 5... Bd6 {[%clk 0:02:54.1]} 6. Qe2+ {[%clk 0:02:53.8]} 6... Qe7
{[%clk 0:02:52.9]} 7. Nc3 {[%clk 0:02:49.5]} 7... Bg4 {[%clk 0:02:48.7]} 8. Be3
{[%clk 0:02:48.6]} 8... Nf6 {[%clk 0:02:47]} 9. h3 {[%clk 0:02:47.1]} 9... Bh5
{[%clk 0:02:46.7]} 10. O-O-O {[%clk 0:02:45.8]} 10... Bg6 {[%clk 0:02:44.7]} 11.
Rhe1 {[%clk 0:02:43]} 11... O-O {[%clk 0:02:41.3]} 12. Kb1 {[%clk 0:02:41.9]}
12... Qc7 {[%clk 0:02:34.4]} 13. g4 {[%clk 0:02:26.3]} 13... Nbd7 {[%clk
0:02:31.4]} 14. Nh4 {[%clk 0:01:52]} 14... Rfe8 {[%clk 0:02:26.6]} 15. Qf3
{[%clk 0:01:39.1]} 15... Bb4 {[%clk 0:02:21.7]} 16. Bd2 {[%clk 0:01:39.3]} 16...
Bxc3 {[%clk 0:02:13.2]} 17. Bxc3 {[%clk 0:01:38.4]} 17... Bxd3 {[%clk 0:02:11]}
18. cxd3 {[%clk 0:01:33.6]} 18... Rxe1 {[%clk 0:02:08.1]} 19. Rxe1 {[%clk
0:01:33.6]} 19... Re8 {[%clk 0:02:06.8]} 20. Re3 {[%clk 0:01:25.8]} 20... Qd8
{[%clk 0:01:45.2]} 21. Nf5 {[%clk 0:01:23.5]} 21... Re6 {[%clk 0:01:43.8]} 22.
Bb4 {[%clk 0:01:19.5]} 22... h6 {[%clk 0:01:29.7]} 23. h4 {[%clk 0:01:04.4]}
23... Rxe3 {[%clk 0:01:19.4]} 24. fxe3 {[%clk 0:01:01.7]} 24... Qe8 {[%clk
0:01:13.8]} 25. g5 {[%clk 0:00:57.5]} 25... hxg5 {[%clk 0:01:12.3]} 26. hxg5
{[%clk 0:00:58.4]} 26... Nh7 {[%clk 0:01:12.4]} 27. Ne7+ {[%clk 0:00:52.1]}
27... Kh8 {[%clk 0:01:11.1]} 28. Qf5 {[%clk 0:00:41.7]} 28... Ndf8 {[%clk
0:01:03.9]} 29. Bd6 {[%clk 0:00:36.8]} 29... Ng6 {[%clk 0:00:47.1]} 30. Nxg6+
{[%clk 0:00:36]} 30... fxg6 {[%clk 0:00:48]} 31. Qf4 {[%clk 0:00:24.7]} 31...
Qd8 {[%clk 0:00:45.3]} 32. Qe5 {[%clk 0:00:08.6]} 32... Nf8 {[%clk 0:00:35.6]}
33. Be7 {[%clk 0:00:06.4]} 33... Qe8 {[%clk 0:00:34.4]} 34. a3 {[%clk
0:00:06.8]} 34... Kh7 {[%clk 0:00:31.9]} 35. Qh2+ {[%clk 0:00:06.9]} 35... Kg8
{[%clk 0:00:30.7]} 36. Qd6 {[%clk 0:00:07.8]} 36... Nh7 {[%clk 0:00:30.3]} 37.
e4 {[%clk 0:00:07.7]} 37... Kf7 {[%clk 0:00:29.8]} 38. Bd8 {[%clk 0:00:03]}
38... dxe4 {[%clk 0:00:30.7]} 39. Qc7+ {[%clk 0:00:02.5]} 39... Kg8 {[%clk
0:00:29.4]} 40. dxe4 {[%clk 0:00:03.4]} 40... Qxe4+ {[%clk 0:00:28.9]} 41. Ka1
{[%clk 0:00:04.1]} 41... Qe1+ {[%clk 0:00:28.6]} 42. Ka2 {[%clk 0:00:04.3]}
42... Qe6+ {[%clk 0:00:29.2]} 43. Ka1 {[%clk 0:00:04.8]} 43... Qe1+ {[%clk
0:00:29.3]} 44. Ka2 {[%clk 0:00:05.4]} 44... Qe6+ {[%clk 0:00:28.8]} 45. Ka1
{[%clk 0:00:06]} 45... Nf8 {[%clk 0:00:27.1]} 46. Be7 {[%clk 0:00:04.5]} 46...
Qe1+ {[%clk 0:00:26.5]} 47. Ka2 {[%clk 0:00:04.8]} 47... Qe6+ {[%clk 0:00:24]}
48. Ka1 {[%clk 0:00:05.1]} 48... Nd7 {[%clk 0:00:23.9]} 49. Bd6 {[%clk
0:00:04.6]} 49... Nb6 {[%clk 0:00:19.9]} 50. Be5 {[%clk 0:00:04.8]} 50... Qf7
{[%clk 0:00:18.3]} 51. Qb8+ {[%clk 0:00:04.8]} 51... Kh7 {[%clk 0:00:17.8]} 52.
Qxa7 {[%clk 0:00:05.5]} 52... Qf1+ {[%clk 0:00:17.5]} 53. Ka2 {[%clk 0:00:06]}
53... Qc4+ {[%clk 0:00:18]} 54. Ka1 {[%clk 0:00:06.3]} 54... Nd5 {[%clk
0:00:15.5]} 55. Qc5 {[%clk 0:00:05.2]} 55... Qf1+ {[%clk 0:00:13.9]} 56. Ka2
{[%clk 0:00:05.5]} 56... Qf7 {[%clk 0:00:14.7]} 57. Qc4 {[%clk 0:00:05.1]} 57...
b5 {[%clk 0:00:14.1]} 58. Qb3 {[%clk 0:00:05.6]} 58... Qf5 {[%clk 0:00:13.7]}
59. Qg3 {[%clk 0:00:03.5]} 59... Qc2 {[%clk 0:00:11.9]} 60. Qh2+ {[%clk
0:00:04]} 60... Kg8 {[%clk 0:00:08.6]} 61. Qxc2 {[%clk 0:00:03.6]} 61... Nb4+
{[%clk 0:00:06.2]} 62. axb4 {[%clk 0:00:03.7]} 1-0

[Event "*** Titled Tuesday Blitz"]
[Site "Chess.com"]
[Date "2020.04.28"]
[Round "8"]
[White "verdest"]
[Black "noblerone"]
[Result "1/2-1/2"]
[WhiteElo "2574"]
[BlackElo "2447"]
[TimeControl "180+1"]
[EndTime "11:37:02 PDT"]
[Termination "Game drawn by repetition"]

1. d4 {[%clk 0:03:00.9]} 1... d5 {[%clk 0:02:59.6]} 2. c4 {[%clk 0:03:01.3]}
2... c6 {[%clk 0:02:59.8]} 3. Nf3 {[%clk 0:03:01.5]} 3... Nf6 {[%clk 0:03:00.4]}
4. e3 {[%clk 0:03:01.8]} 4... Bg4 {[%clk 0:03:00.1]} 5. h3 {[%clk 0:03:01.4]}
5... Bh5 {[%clk 0:03:00.2]} 6. g4 {[%clk 0:03:01.5]} 6... Bg6 {[%clk 0:03:00.4]}
7. Ne5 {[%clk 0:03:02.1]} 7... Nbd7 {[%clk 0:02:50.1]} 8. Qb3 {[%clk 0:02:55.8]}
8... Qb6 {[%clk 0:02:45.2]} 9. Nxg6 {[%clk 0:02:50.3]} 9... hxg6 {[%clk
0:02:44.8]} 10. Bg2 {[%clk 0:02:49.6]} 10... e6 {[%clk 0:02:30.8]} 11. Nd2
{[%clk 0:02:47.2]} 11... Bb4 {[%clk 0:02:02.7]} 12. O-O {[%clk 0:02:33.8]} 12...
O-O {[%clk 0:01:54.6]} 13. Qc2 {[%clk 0:02:28.7]} 13... Be7 {[%clk 0:01:48.3]}
14. b3 {[%clk 0:02:26.7]} 14... Rac8 {[%clk 0:01:43.6]} 15. Bb2 {[%clk
0:02:26.1]} 15... a6 {[%clk 0:01:43]} 16. e4 {[%clk 0:02:18.9]} 16... dxe4
{[%clk 0:01:40.4]} 17. Nxe4 {[%clk 0:02:19.8]} 17... Nxe4 {[%clk 0:01:40.4]} 18.
Qxe4 {[%clk 0:02:16]} 18... Bf6 {[%clk 0:01:35.5]} 19. Rad1 {[%clk 0:02:08.9]}
19... Rfe8 {[%clk 0:01:35]} 20. Rfe1 {[%clk 0:02:07]} 20... a5 {[%clk
0:01:33.3]} 21. Rd3 {[%clk 0:01:53]} 21... a4 {[%clk 0:01:28.9]} 22. f4 {[%clk
0:01:38.6]} 22... axb3 {[%clk 0:01:27.7]} 23. axb3 {[%clk 0:01:39.5]} 23... Qa5
{[%clk 0:01:18.3]} 24. Bc3 {[%clk 0:01:23.9]} 24... Qb6 {[%clk 0:01:10.3]} 25.
b4 {[%clk 0:01:15.8]} 25... Qa6 {[%clk 0:01:04.9]} 26. c5 {[%clk 0:01:07]} 26...
Bh4 {[%clk 0:00:56]} 27. Rf1 {[%clk 0:01:00.8]} 27... Nf6 {[%clk 0:00:55.3]} 28.
Qf3 {[%clk 0:01:00]} 28... Nd5 {[%clk 0:00:52.5]} 29. Bd2 {[%clk 0:00:59.5]}
29... Bf6 {[%clk 0:00:50.4]} 30. g5 {[%clk 0:00:50.6]} 30... Be7 {[%clk
0:00:44.8]} 31. h4 {[%clk 0:00:50.9]} 31... Rcd8 {[%clk 0:00:38]} 32. h5 {[%clk
0:00:50.8]} 32... gxh5 {[%clk 0:00:36.6]} 33. f5 {[%clk 0:00:51]} 33... exf5
{[%clk 0:00:32.6]} 34. Qxf5 {[%clk 0:00:51.9]} 34... Rf8 {[%clk 0:00:32.8]} 35.
g6 {[%clk 0:00:41.1]} 35... fxg6 {[%clk 0:00:24.8]} 36. Qxg6 {[%clk 0:00:34.5]}
36... Rxf1+ {[%clk 0:00:22.2]} 37. Bxf1 {[%clk 0:00:35.4]} 37... Qa1 {[%clk
0:00:15.5]} 38. Qxh5 {[%clk 0:00:25]} 38... Bf6 {[%clk 0:00:15.5]} 39. Rh3
{[%clk 0:00:20]} 39... Bxd4+ {[%clk 0:00:14.6]} 40. Kg2 {[%clk 0:00:19.6]} 40...
Qb2 {[%clk 0:00:11.9]} 41. Qh8+ {[%clk 0:00:16.2]} 41... Kf7 {[%clk 0:00:12.2]}
42. Rf3+ {[%clk 0:00:15.1]} 42... Nf6 {[%clk 0:00:12.2]} 43. Qxd8 {[%clk
0:00:14.5]} 43... Qxd2+ {[%clk 0:00:11.9]} 44. Kh1 {[%clk 0:00:13.8]} 44... Qh6+
{[%clk 0:00:08.6]} 45. Bh3 {[%clk 0:00:13.9]} 45... Qc1+ {[%clk 0:00:08.4]} 46.
Rf1 {[%clk 0:00:14]} 46... Qe3 {[%clk 0:00:07.3]} 47. Qd7+ {[%clk 0:00:13.5]}
47... Kf8 {[%clk 0:00:04.6]} 48. Qc8+ {[%clk 0:00:12.2]} 48... Kf7 {[%clk
0:00:04.9]} 49. Qxb7+ {[%clk 0:00:10.4]} 49... Kg6 {[%clk 0:00:05.3]} 50. Qc8
{[%clk 0:00:07.3]} 50... Qe4+ {[%clk 0:00:04]} 51. Bg2 {[%clk 0:00:06.2]} 51...
Qh4+ {[%clk 0:00:04]} 52. Qh3 {[%clk 0:00:06.8]} 52... Qxh3+ {[%clk 0:00:03.2]}
53. Bxh3 {[%clk 0:00:07.7]} 53... Nd5 {[%clk 0:00:03.6]} 54. Rb1 {[%clk
0:00:05.2]} 54... Bc3 {[%clk 0:00:03.5]} 55. b5 {[%clk 0:00:05]} 55... cxb5
{[%clk 0:00:04.4]} 56. Rxb5 {[%clk 0:00:03.7]} 56... Nf4 {[%clk 0:00:03.3]} 57.
Bg2 {[%clk 0:00:03.5]} 57... Be5 {[%clk 0:00:03.6]} 58. c6 {[%clk 0:00:02.7]}
58... Kf6 {[%clk 0:00:04.5]} 59. Rb7 {[%clk 0:00:02.8]} 59... Ne6 {[%clk
0:00:03.9]} 60. Bd5 {[%clk 0:00:01.9]} 60... Nc7 {[%clk 0:00:04.8]} 61. Rb8
{[%clk 0:00:02]} 61... g5 {[%clk 0:00:05.2]} 62. Rf8+ {[%clk 0:00:02.9]} 62...
Ke7 {[%clk 0:00:05.7]} 63. Rc8 {[%clk 0:00:03]} 63... Kd6 {[%clk 0:00:06.6]} 64.
Rxc7 {[%clk 0:00:03.2]} 64... Kxc7 {[%clk 0:00:07.5]} 65. Bg2 {[%clk 0:00:03.8]}
65... Kd6 {[%clk 0:00:08]} 66. Be4 {[%clk 0:00:04.7]} 66... Kc7 {[%clk
0:00:08.9]} 67. Kg2 {[%clk 0:00:05.6]} 67... Bf4 {[%clk 0:00:09.6]} 68. Kf3
{[%clk 0:00:06.5]} 68... Be5 {[%clk 0:00:10.5]} 69. Kg4 {[%clk 0:00:06.9]} 69...
Bf4 {[%clk 0:00:11.4]} 70. Kf5 {[%clk 0:00:07.8]} 70... Be3 {[%clk 0:00:11.9]}
71. Kg4 {[%clk 0:00:08.7]} 71... Bd2 {[%clk 0:00:12.8]} 72. Kf5 {[%clk
0:00:09.4]} 72... Bc1 {[%clk 0:00:13.7]} 73. Kg4 {[%clk 0:00:10.3]} 73... Bf4
{[%clk 0:00:14.2]} 74. Kf5 {[%clk 0:00:10.9]} 74... Bc1 {[%clk 0:00:15.1]} 75.
Kg4 {[%clk 0:00:11.8]} 75... Bf4 {[%clk 0:00:15.9]} 1/2-1/2

[Event "*** Titled Tuesday Blitz"]
[Site "Chess.com"]
[Date "2020.04.28"]
[Round "8"]
[White "Angry_Twin"]
[Black "Guenplen"]
[Result "1-0"]
[WhiteElo "2809"]
[BlackElo "2941"]
[TimeControl "180+1"]
[EndTime "11:37:04 PDT"]
[Termination "Angry_Twin won on time"]

1. e4 {[%clk 0:03:00.9]} 1... c5 {[%clk 0:02:59.8]} 2. Nf3 {[%clk 0:03:00.5]}
2... e6 {[%clk 0:02:59.8]} 3. d4 {[%clk 0:02:59.5]} 3... cxd4 {[%clk 0:03:00.7]}
4. Nxd4 {[%clk 0:03:00.3]} 4... Nf6 {[%clk 0:03:01.1]} 5. Nc3 {[%clk 0:02:59.7]}
5... Nc6 {[%clk 0:03:01.5]} 6. Nxc6 {[%clk 0:03:00.3]} 6... bxc6 {[%clk
0:03:02.4]} 7. e5 {[%clk 0:03:00.9]} 7... Nd5 {[%clk 0:03:02.4]} 8. Ne4 {[%clk
0:03:01.5]} 8... Bb7 {[%clk 0:03:02.8]} 9. Be2 {[%clk 0:03:00]} 9... c5 {[%clk
0:03:01.5]} 10. O-O {[%clk 0:02:56.1]} 10... Qc7 {[%clk 0:03:01.3]} 11. Nd6+
{[%clk 0:02:56.4]} 11... Bxd6 {[%clk 0:03:01.4]} 12. exd6 {[%clk 0:02:57.3]}
12... Qc6 {[%clk 0:03:01.9]} 13. f3 {[%clk 0:02:48]} 13... c4 {[%clk 0:03:01.5]}
14. Qd4 {[%clk 0:02:48.5]} 14... O-O {[%clk 0:03:01.2]} 15. Bxc4 {[%clk
0:02:34.7]} 15... Qxd6 {[%clk 0:03:00.9]} 16. Bd3 {[%clk 0:02:33.4]} 16... Qb6
{[%clk 0:02:50.2]} 17. Qxb6 {[%clk 0:02:33.2]} 17... Nxb6 {[%clk 0:02:50.5]} 18.
Be3 {[%clk 0:02:32.5]} 18... Rfc8 {[%clk 0:02:46.8]} 19. b3 {[%clk 0:02:31.7]}
19... Nd5 {[%clk 0:02:43.8]} 20. Bd2 {[%clk 0:02:24.8]} 20... a5 {[%clk
0:02:43.3]} 21. c4 {[%clk 0:02:22]} 21... Nb4 {[%clk 0:02:41.8]} 22. Be2 {[%clk
0:02:19.7]} 22... f5 {[%clk 0:02:21.4]} 23. Rfc1 {[%clk 0:02:14.4]} 23... Kf7
{[%clk 0:02:18.2]} 24. a3 {[%clk 0:02:12]} 24... Nc6 {[%clk 0:02:16.9]} 25. Bc3
{[%clk 0:02:12.3]} 25... Ne7 {[%clk 0:02:06.9]} 26. b4 {[%clk 0:02:10.3]} 26...
axb4 {[%clk 0:02:01.9]} 27. axb4 {[%clk 0:02:11.2]} 27... g5 {[%clk 0:01:49.7]}
28. b5 {[%clk 0:02:03.1]} 28... h5 {[%clk 0:01:43.8]} 29. Rd1 {[%clk 0:02:02]}
29... Ke8 {[%clk 0:01:40.4]} 30. Bd4 {[%clk 0:01:48.4]} 30... g4 {[%clk
0:01:32.8]} 31. fxg4 {[%clk 0:01:47.8]} 31... fxg4 {[%clk 0:01:27.2]} 32. Bf2
{[%clk 0:01:37.8]} 32... Nf5 {[%clk 0:01:22.6]} 33. Bd3 {[%clk 0:01:36.7]} 33...
h4 {[%clk 0:01:05.7]} 34. Re1 {[%clk 0:00:52.4]} 34... Kf7 {[%clk 0:01:02.8]}
35. Rxa8 {[%clk 0:00:50.5]} 35... Bxa8 {[%clk 0:00:38.8]} 36. Ra1 {[%clk
0:00:41]} 36... g3 {[%clk 0:00:37.6]} 37. hxg3 {[%clk 0:00:39.6]} 37... hxg3
{[%clk 0:00:38.5]} 38. Bb6 {[%clk 0:00:39.2]} 38... Nh4 {[%clk 0:00:29.5]} 39.
Bf1 {[%clk 0:00:39]} 39... Be4 {[%clk 0:00:23.7]} 40. Ra7 {[%clk 0:00:37.5]}
40... Ke8 {[%clk 0:00:22.1]} 41. Bc7 {[%clk 0:00:33.4]} 41... Nf5 {[%clk
0:00:12.9]} 42. b6 {[%clk 0:00:33.4]} 42... Nd4 {[%clk 0:00:06.1]} 43. b7 {[%clk
0:00:32.6]} 43... Bxb7 {[%clk 0:00:06.3]} 44. Rxb7 {[%clk 0:00:33.5]} 44... Nf5
{[%clk 0:00:06.4]} 45. Bd3 {[%clk 0:00:31.2]} 45... Ra8 {[%clk 0:00:05.4]} 46.
Rb8+ {[%clk 0:00:31.2]} 46... Rxb8 {[%clk 0:00:05.7]} 47. Bxb8 {[%clk
0:00:32.1]} 47... Nd4 {[%clk 0:00:03.9]} 48. Bxg3 {[%clk 0:00:31.4]} 48... d5
{[%clk 0:00:03.8]} 49. cxd5 {[%clk 0:00:31]} 49... exd5 {[%clk 0:00:04.7]} 50.
Kf2 {[%clk 0:00:31.4]} 50... Ne6 {[%clk 0:00:04.4]} 51. Ke3 {[%clk 0:00:31.6]}
51... Kf7 {[%clk 0:00:04.3]} 52. Bf5 {[%clk 0:00:31.4]} 52... Ng7 {[%clk
0:00:04.6]} 53. Bg4 {[%clk 0:00:30.9]} 53... Kf6 {[%clk 0:00:03.8]} 54. Bf4
{[%clk 0:00:30.4]} 54... Kg6 {[%clk 0:00:03.7]} 55. Kd4 {[%clk 0:00:30.4]} 55...
Ne8 {[%clk 0:00:04.1]} 56. Bf3 {[%clk 0:00:29.3]} 56... Nf6 {[%clk 0:00:04]} 57.
Bxd5 {[%clk 0:00:29.5]} 57... Kf5 {[%clk 0:00:03.7]} 58. Bb8 {[%clk 0:00:28.6]}
58... Nh5 {[%clk 0:00:02.5]} 59. Bf3 {[%clk 0:00:28.5]} 59... Nf6 {[%clk
0:00:02.7]} 60. Be5 {[%clk 0:00:28.7]} 60... Nd7 {[%clk 0:00:03]} 61. Bg7 {[%clk
0:00:27.1]} 61... Kg6 {[%clk 0:00:02.8]} 62. Be5 {[%clk 0:00:27.1]} 62... Kf5
{[%clk 0:00:02.8]} 63. Bh2 {[%clk 0:00:26.7]} 63... Nf6 {[%clk 0:00:02.3]} 64.
g3 {[%clk 0:00:27.1]} 64... Nd7 {[%clk 0:00:01.8]} 65. g4+ {[%clk 0:00:25.8]}
65... Kg5 {[%clk 0:00:02.1]} 66. Be5 {[%clk 0:00:25.3]} 66... Nf8 {[%clk
0:00:01.9]} 67. Ke3 {[%clk 0:00:24.9]} 67... Ne6 {[%clk 0:00:01.4]} 68. Be2
{[%clk 0:00:25.3]} 68... Nf8 {[%clk 0:00:01.9]} 69. Bf4+ {[%clk 0:00:25.6]}
69... Kg6 {[%clk 0:00:01.9]} 70. Bd3+ {[%clk 0:00:25.8]} 70... Kg7 {[%clk
0:00:02.3]} 71. Bf5 {[%clk 0:00:26.4]} 71... Kf6 {[%clk 0:00:02]} 72. Bh6 {[%clk
0:00:26.1]} 1-0